bitfinex-derivatives/quotes_BTCF0:USTF0_20260314
["timestamp","ask_amount","ask_price","bid_price","bid_amount"]
[1773499086775,0.043361,70809.0,70797.0,0.042367]
[1773499087477,0.042363,70805.0,70795.0,0.0014]
[1773499088473,0.042362,70807.0,70795.0,0.0014]
[1773499091681,0.042363,70806.0,70795.0,0.0014]
[1773499091975,0.01122,70819.0,70778.0,0.042379]
[1773499091976,0.042372,70791.0,70778.0,0.042379]
[1773499092579,0.042371,70792.0,70779.0,0.043778]
[1773499092779,0.042371,70792.0,70779.0,0.042378]
[1773499092980,0.042371,70792.0,70780.0,0.0014]
[1773499093364,0.042371,70792.0,70781.0,0.0014]
[1773499093772,0.042371,70792.0,70785.0,0.01122]
[1773499094372,0.01122,70788.0,70785.0,0.01122]
[1773499095188,0.01122,70788.0,70782.0,0.0014]
[1773499095682,0.042371,70792.0,70782.0,0.0014]
[1773499096280,0.042371,70792.0,70779.0,0.042378]
[1773499096481,0.042371,70792.0,70780.0,0.0014]
[1773499096688,0.04237,70794.0,70780.0,0.0014]
[1773499096876,0.042369,70796.0,70781.0,0.0014]
[1773499097177,0.01122,70792.0,70781.0,0.0014]
[1773499097382,0.01122,70792.0,70781.0,0.02733546]
[1773499097985,0.01122,70792.0,70783.0,0.042376]
[1773499108101,0.042364,70804.0,70782.0,0.02497503]
[1773499108304,0.042364,70804.0,70781.0,0.0014]
[1773499108305,0.042366,70801.0,70790.0,0.02497503]
[1773499108604,0.02671681,70810.0,70790.0,0.02497503]
[1773499108605,0.042366,70800.0,70790.0,0.02497503]
[1773499108805,0.042366,70800.0,70788.0,0.043773]
[1773499109007,0.042366,70800.0,70794.0,0.01122]
[1773499109805,0.01122,70796.0,70794.0,0.01122]
[1773499118419,0.042367,70799.0,70788.0,0.0014]
[1773499118716,0.23066182,70798.0,70788.0,0.0014]
[1773499118921,0.042367,70799.0,70788.0,0.0014]
[1773499119112,0.042368,70797.0,70788.0,0.0014]
[1773499119417,0.042368,70797.0,70787.0,0.0014]
[1773499119718,0.042368,70797.0,70786.0,0.0014]
[1773499120319,0.23076058,70796.0,70786.0,0.0014]
[1773499120521,0.042368,70797.0,70786.0,0.0014]
[1773499120821,0.2306827,70796.0,70786.0,0.0014]
[1773499121120,0.042368,70797.0,70786.0,0.0014]
[1773499121420,0.23076981,70796.0,70786.0,0.0014]
[1773499121622,0.042368,70797.0,70786.0,0.0014]
[1773499121921,0.23077005,70796.0,70786.0,0.0014]
[1773499122220,0.23077002,70795.0,70786.0,0.0014]
[1773499122416,0.042368,70797.0,70786.0,0.0014]
[1773499122720,0.23076994,70796.0,70786.0,0.0014]
[1773499123021,0.042368,70797.0,70786.0,0.0014]
[1773499123224,0.23076784,70796.0,70786.0,0.0014]
[1773499123419,0.042368,70797.0,70786.0,0.0014]
[1773499123621,0.23077037,70796.0,70786.0,0.0014]
[1773499123820,0.042368,70797.0,70786.0,0.0014]
[1773499124022,0.2307707,70796.0,70786.0,0.0014]
[1773499124222,0.042368,70797.0,70786.0,0.0014]
[1773499125128,0.053587,70799.0,70786.0,0.043774]
[1773499125328,0.23077585,70798.0,70786.0,0.043774]
[1773499125518,0.23077585,70797.0,70786.0,0.043774]
[1773499125719,0.053587,70799.0,70786.0,0.043774]
[1773499126026,0.23077469,70798.0,70786.0,0.043774]
[1773499126226,0.23077469,70797.0,70786.0,0.043774]
[1773499126427,0.042368,70798.0,70786.0,0.043774]
[1773499126627,0.2307685,70797.0,70786.0,0.043774]
[1773499126930,0.042368,70798.0,70786.0,0.043774]
[1773499127131,0.23076644,70797.0,70786.0,0.043774]
[1773499127324,0.042368,70798.0,70786.0,0.043774]
[1773499127625,0.23076966,70797.0,70786.0,0.043774]
[1773499127825,0.042368,70798.0,70786.0,0.043774]
[1773499128024,0.23076961,70797.0,70786.0,0.043774]
[1773499128323,0.042368,70798.0,70786.0,0.043774]
[1773499128524,0.23077326,70797.0,70786.0,0.043774]
[1773499128825,0.042368,70798.0,70786.0,0.043774]
[1773499129128,0.23076833,70797.0,70786.0,0.043774]
[1773499129328,0.23076837,70796.0,70786.0,0.043774]
[1773499129530,0.042368,70798.0,70786.0,0.043774]
[1773499129720,0.23076902,70797.0,70786.0,0.043774]
[1773499129919,0.042368,70798.0,70786.0,0.043774]
[1773499130118,0.23076654,70797.0,70786.0,0.043774]
[1773499130333,0.23077112,70796.0,70786.0,0.043774]
[1773499130629,0.042368,70798.0,70786.0,0.043774]
[1773499130930,0.23077112,70797.0,70786.0,0.043774]
[1773499131131,0.23077112,70796.0,70786.0,0.043774]
[1773499131329,0.042368,70798.0,70786.0,0.043774]
[1773499131628,0.23077684,70797.0,70786.0,0.043774]
[1773499131930,0.23077684,70796.0,70786.0,0.043774]
[1773499132228,0.042368,70798.0,70786.0,0.043774]
[1773499132430,0.23078126,70797.0,70786.0,0.043774]
[1773499132629,0.23078126,70796.0,70786.0,0.043774]
[1773499132815,0.23078126,70795.0,70786.0,0.043774]
[1773499133015,0.042368,70798.0,70786.0,0.043774]
[1773499133219,0.23078094,70797.0,70786.0,0.043774]
[1773499133431,0.23078094,70796.0,70786.0,0.043774]
[1773499133730,0.23078094,70795.0,70786.0,0.043774]
[1773499133930,0.042368,70798.0,70786.0,0.043774]
[1773499134131,0.23078608,70797.0,70786.0,0.043774]
[1773499134432,0.23078608,70796.0,70786.0,0.043774]
[1773499134631,0.23078608,70795.0,70786.0,0.043774]
[1773499134826,0.042368,70798.0,70786.0,0.043774]
[1773499135021,0.23079174,70797.0,70786.0,0.043774]
[1773499135330,0.23079174,70796.0,70786.0,0.043774]
[1773499135531,0.23079174,70795.0,70786.0,0.043774]
[1773499136033,0.042368,70798.0,70786.0,0.043774]
[1773499136632,0.23080484,70797.0,70786.0,0.043774]
[1773499137331,0.042368,70798.0,70786.0,0.043774]
[1773499137723,0.01122,70799.0,70788.0,0.042373]
[1773499137919,0.053587,70799.0,70786.0,0.043774]
[1773499138731,0.01122,70799.0,70787.0,0.02542351]
[1773499139033,0.23081361,70798.0,70787.0,0.02542351]
[1773499139233,0.042364,70805.0,70787.0,0.02542351]
[1773499139234,0.23081361,70797.0,70787.0,0.02542351]
[1773499139536,0.23081361,70796.0,70791.0,0.042371]
[1773499139831,0.042364,70804.0,70792.0,0.0014]
[1773499140032,0.23081193,70803.0,70792.0,0.0014]
[1773499140231,0.23081193,70802.0,70797.0,0.01122]
[1773499140430,0.23081193,70801.0,70797.0,0.01122]
[1773499140630,0.02429093,70799.0,70774.0,0.042381]
[1773499140832,0.23081193,70800.0,70772.0,0.0014]
[1773499140833,0.07369966,70784.0,70772.0,0.0014]
[1773499141027,0.06666593,70785.0,70772.0,0.0014]
[1773499141231,0.23563648,70784.0,70772.0,0.0014]
[1773499141430,0.06666593,70785.0,70772.0,0.0014]
[1773499141645,0.23563297,70784.0,70772.0,0.0014]
[1773499141821,0.2356245,70783.0,70772.0,0.0014]
[1773499142026,0.06666593,70785.0,70772.0,0.043782]
[1773499142229,0.23562828,70784.0,70772.0,0.043782]
[1773499142433,0.06666593,70785.0,70772.0,0.043782]
[1773499142739,0.23552995,70784.0,70772.0,0.043782]
[1773499142932,0.23552383,70783.0,70772.0,0.043782]
[1773499143127,0.06666593,70785.0,70772.0,0.043782]
[1773499143329,0.23544676,70784.0,70772.0,0.043782]
[1773499143528,0.23544676,70783.0,70772.0,0.043782]
[1773499143821,0.23544676,70782.0,70772.0,0.043782]
[1773499144022,0.06666593,70785.0,70772.0,0.043782]
[1773499144337,0.23544788,70784.0,70772.0,0.043782]
[1773499144523,0.23544788,70783.0,70772.0,0.043782]
[1773499144827,0.06666593,70785.0,70772.0,0.043782]
[1773499145026,0.23538275,70784.0,70772.0,0.043782]
[1773499145222,0.23538275,70783.0,70772.0,0.043782]
[1773499145424,0.06666593,70785.0,70772.0,0.043782]
[1773499145638,0.23533137,70784.0,70772.0,0.043782]
[1773499145837,0.06666593,70785.0,70772.0,0.043782]
[1773499146437,0.042375,70785.0,70772.0,0.043782]
[1773499150541,0.042375,70785.0,70773.0,0.042382]
[1773499153042,0.042375,70785.0,70779.0,0.00102867]
[1773499153940,0.042374,70787.0,70779.0,0.00102867]
[1773499154143,0.2357772,70786.0,70783.0,0.00102867]
[1773499154341,0.042374,70787.0,70773.0,0.042382]
[1773499154543,0.23577541,70786.0,70773.0,0.042382]
[1773499154743,0.042374,70787.0,70773.0,0.042382]
[1773499154943,0.23577541,70786.0,70773.0,0.042382]
[1773499155240,0.042374,70787.0,70773.0,0.042382]
[1773499155442,0.23577845,70786.0,70773.0,0.042382]
[1773499155744,0.042374,70787.0,70773.0,0.042382]
[1773499155745,0.23576,70785.0,70773.0,0.042382]
[1773499156044,0.042374,70787.0,70773.0,0.042382]
[1773499156244,0.23575524,70786.0,70773.0,0.042382]
[1773499156544,0.23575524,70785.0,70773.0,0.042382]
[1773499156845,0.042374,70787.0,70773.0,0.042382]
[1773499157044,0.23576444,70786.0,70773.0,0.042382]
[1773499157240,0.23576444,70785.0,70773.0,0.042382]
[1773499157445,0.042375,70786.0,70773.0,0.042382]
[1773499157646,0.2357777,70785.0,70773.0,0.042382]
[1773499157944,0.042375,70786.0,70773.0,0.042382]
[1773499158146,0.23577288,70785.0,70773.0,0.042382]
[1773499158344,0.042375,70786.0,70773.0,0.042382]
[1773499158544,0.23578387,70785.0,70773.0,0.042382]
[1773499158845,0.042375,70786.0,70773.0,0.042382]
[1773499159045,0.23578395,70785.0,70773.0,0.042382]
[1773499159346,0.042375,70786.0,70773.0,0.042382]
[1773499159549,0.2358079,70785.0,70773.0,0.042382]
[1773499159743,0.042375,70786.0,70773.0,0.042382]
[1773499159946,0.2358083,70785.0,70773.0,0.042382]
[1773499160145,0.042375,70786.0,70773.0,0.043782]
[1773499160345,0.23583866,70785.0,70773.0,0.043782]
[1773499160546,0.042375,70786.0,70773.0,0.043782]
[1773499160850,0.23583866,70785.0,70773.0,0.043782]
[1773499161042,0.042375,70786.0,70773.0,0.043782]
[1773499161244,0.23583866,70785.0,70773.0,0.043782]
[1773499161542,0.23583866,70784.0,70773.0,0.043782]
[1773499161742,0.042375,70786.0,70773.0,0.043782]
[1773499162042,0.23587507,70785.0,70773.0,0.043782]
[1773499162346,0.23587507,70784.0,70773.0,0.043782]
[1773499162547,0.042375,70785.0,70773.0,0.043782]
[1773499162739,0.2359201,70784.0,70773.0,0.043782]
[1773499162942,0.042375,70785.0,70773.0,0.043782]
[1773499163135,0.2359201,70784.0,70773.0,0.043782]
[1773499163340,0.042375,70785.0,70773.0,0.043782]
[1773499163545,0.23597475,70784.0,70773.0,0.043782]
[1773499163840,0.042375,70785.0,70773.0,0.043782]
[1773499164043,0.23595248,70784.0,70774.0,0.042381]
[1773499164245,0.042374,70787.0,70774.0,0.042381]
[1773499164444,0.27839258,70786.0,70774.0,0.042381]
[1773499164639,0.23601758,70785.0,70774.0,0.042381]
[1773499164846,0.23601758,70784.0,70774.0,0.042381]
[1773499165044,0.042375,70785.0,70773.0,0.0014]
[1773499165250,0.23599068,70784.0,70773.0,0.0014]
[1773499165452,0.042375,70785.0,70773.0,0.0014]
[1773499165453,0.23608392,70783.0,70773.0,0.0014]
[1773499165654,0.042375,70785.0,70773.0,0.0014]
[1773499165847,0.23608438,70784.0,70773.0,0.0014]
[1773499166155,0.02285634,70782.0,70767.0,0.05]
[1773499166462,0.02285634,70778.0,70767.0,0.05]
[1773499166749,0.042381,70775.0,70767.0,0.05]
[1773499167145,0.02285634,70778.0,70767.0,0.05]
[1773499167352,0.042381,70776.0,70767.0,0.05]
[1773499167549,0.06523534,70778.0,70767.0,0.05]
[1773499167748,0.042379,70778.0,70767.0,0.05]
[1773499169854,0.04238,70777.0,70767.0,0.05]
[1773499170056,0.02285634,70780.0,70767.0,0.05]
[1773499170359,0.04238,70777.0,70767.0,0.05]
[1773499170560,0.23624764,70776.0,70767.0,0.05]
[1773499170761,0.23624764,70775.0,70767.0,0.05]
[1773499170956,0.23624764,70774.0,70767.0,0.05]
[1773499171157,0.02285634,70780.0,70764.0,0.0014]
[1773499171462,0.2590441,70779.0,70764.0,0.0014]
[1773499171661,0.23618776,70778.0,70764.0,0.0014]
[1773499171961,0.042381,70776.0,70763.0,0.01122]
[1773499172262,0.23618776,70775.0,70764.0,0.0014]
[1773499172765,0.27856876,70775.0,70764.0,0.0014]
[1773499173061,0.042381,70775.0,70764.0,0.0014]
[1773499173452,0.02285634,70778.0,70764.0,0.0014]
[1773499173745,0.02285634,70776.0,70763.0,0.0014]
[1773499173955,0.23611609,70775.0,70763.0,0.0014]
[1773499174155,0.042383,70772.0,70763.0,0.0014]
[1773499174355,0.042382,70774.0,70763.0,0.0014]
[1773499174558,0.23607607,70773.0,70763.0,0.0014]
[1773499174756,0.02285634,70776.0,70763.0,0.0014]
[1773499175060,0.07369966,70770.0,70761.0,0.0014]
[1773499175257,0.02285634,70774.0,70761.0,0.0014]
[1773499175451,0.25888271,70773.0,70761.0,0.0014]
[1773499175762,0.25888271,70772.0,70760.0,0.0014]
[1773499175961,0.042384,70771.0,70760.0,0.0014]
[1773499176162,0.042384,70771.0,70758.0,0.042391]
[1773499176460,0.042384,70771.0,70760.0,0.0014]
[1773499176654,0.042384,70771.0,70758.0,0.042391]
[1773499176852,0.042384,70771.0,70759.0,0.0014]
[1773499177056,0.042384,70771.0,70759.0,0.04379]
[1773499177252,0.042384,70771.0,70760.0,0.0014]
[1773499177658,0.02285634,70772.0,70759.0,0.04239]
[1773499177860,0.02285634,70772.0,70759.0,0.04379]
[1773499178063,0.042384,70771.0,70759.0,0.0014]
[1773499179454,0.042384,70770.0,70758.0,0.042391]
[1773499179650,0.042385,70769.0,70756.0,0.0014]
[1773499180060,0.06524134,70769.0,70756.0,0.0014]
[1773499180864,0.06524134,70769.0,70754.0,0.01123]
[1773499181067,0.06524134,70769.0,70755.0,0.0014]
[1773499181265,0.06524134,70769.0,70757.0,0.042391]
[1773499181562,0.042385,70769.0,70757.0,0.043791]
[1773499185970,0.0014,70775.0,70746.0,0.01123]
[1773499185971,0.042387,70765.0,70751.0,0.042395]
[1773499186271,0.042387,70765.0,70752.0,0.042394]
[1773499186866,0.042387,70765.0,70753.0,0.0014]
[1773499187371,0.042387,70765.0,70754.0,0.0014]
[1773499187780,0.042387,70765.0,70755.0,0.0014]
[1773499188270,0.042387,70765.0,70756.0,0.0014]
[1773499188669,0.042387,70765.0,70752.0,0.042394]
[1773499188873,0.042387,70765.0,70747.0,0.02425942]
[1773499188874,0.02285634,70766.0,70749.0,0.0014]
[1773499189572,0.02285634,70766.0,70750.0,0.0014]
[1773499189770,0.042388,70763.0,70751.0,0.042395]
[1773499189974,0.043785,70769.0,70754.0,0.02328615]
[1773499190266,0.27841857,70768.0,70755.0,0.042393]
[1773499190468,0.23603257,70767.0,70756.0,0.0014]
[1773499190767,0.042386,70768.0,70756.0,0.0014]
[1773499190972,0.0014,70769.0,70756.0,0.0014]
[1773499191173,0.0014,70769.0,70757.0,0.042391]
[1773499191374,0.23602772,70768.0,70757.0,0.042391]
[1773499191564,0.02365202,70774.0,70757.0,0.042391]
[1773499191565,0.042385,70769.0,70757.0,0.042391]
[1773499191770,0.23602848,70768.0,70757.0,0.042391]
[1773499191970,0.042385,70769.0,70757.0,0.042391]
[1773499192178,0.23604033,70768.0,70757.0,0.02397196]
[1773499192370,0.0014,70774.0,70757.0,0.02397196]
[1773499192572,0.23604081,70773.0,70757.0,0.02397196]
[1773499192873,0.23604081,70772.0,70757.0,0.02397196]
[1773499193076,0.23604081,70771.0,70759.0,0.04239]
[1773499193380,0.042382,70773.0,70759.0,0.04239]
[1773499193590,0.27843705,70772.0,70759.0,0.04239]
[1773499193877,0.27843805,70771.0,70759.0,0.04239]
[1773499194082,0.07377389,70780.0,70757.0,0.042392]
[1773499194083,0.042384,70770.0,70757.0,0.042392]
[1773499195771,0.042383,70772.0,70756.0,0.0014]
[1773499195971,0.23611811,70771.0,70760.0,0.04239]
[1773499196182,0.23611811,70770.0,70760.0,0.04239]
[1773499196479,0.042383,70772.0,70758.0,0.042391]
[1773499196684,0.27853941,70771.0,70758.0,0.042391]
[1773499196887,0.23615541,70770.0,70758.0,0.042391]
[1773499197183,0.23619282,70769.0,70758.0,0.042391]
[1773499197378,0.042383,70773.0,70756.0,0.02537196]
[1773499197583,0.23619547,70772.0,70756.0,0.02537196]
[1773499197781,0.23619547,70771.0,70756.0,0.0014]
[1773499198085,0.042383,70773.0,70760.0,0.042389]
[1773499198086,0.23619547,70770.0,70760.0,0.042389]
[1773499198275,0.042383,70773.0,70760.0,0.042389]
[1773499198476,0.2356462,70772.0,70760.0,0.042389]
[1773499198683,0.2356462,70771.0,70760.0,0.042389]
[1773499198885,0.2356462,70770.0,70760.0,0.042389]
[1773499199180,0.042383,70773.0,70760.0,0.042389]
[1773499199380,0.23570353,70772.0,70760.0,0.042389]
[1773499199575,0.23570353,70771.0,70760.0,0.042389]
[1773499199776,0.23570353,70770.0,70760.0,0.042389]
[1773499199976,0.042383,70773.0,70760.0,0.042389]
[1773499200176,0.23570387,70772.0,70760.0,0.042389]
[1773499200384,0.23570387,70771.0,70760.0,0.042389]
[1773499200683,0.23570387,70770.0,70760.0,0.042389]
[1773499200884,0.042383,70773.0,70760.0,0.042389]
[1773499200885,0.23570387,70769.0,70760.0,0.042389]
[1773499201082,0.0243161,70783.0,70760.0,0.02397196]
[1773499201277,0.04238,70778.0,70766.0,0.042386]
[1773499201478,0.27815107,70777.0,70767.0,0.0014]
[1773499201680,0.23577107,70776.0,70767.0,0.0014]
[1773499202482,0.0014,70786.0,70768.0,0.02397196]
[1773499202686,0.001,70783.0,70768.0,0.02397196]
[1773499202888,0.001,70783.0,70767.0,0.0014]
[1773499202889,0.23580582,70782.0,70770.0,0.06635596]
[1773499203088,0.001,70783.0,70770.0,0.09774585]
[1773499203287,0.001,70783.0,70771.0,0.02397196]
[1773499204192,0.042374,70787.0,70771.0,0.02397196]
[1773499204394,0.23562239,70786.0,70771.0,0.02397196]
[1773499204587,0.23562239,70785.0,70771.0,0.02397196]
[1773499204788,0.23562239,70784.0,70771.0,0.02397196]
[1773499204990,0.042374,70787.0,70773.0,0.042382]
[1773499205294,0.23560588,70786.0,70774.0,0.0014]
[1773499205593,0.23560588,70785.0,70774.0,0.0014]
[1773499205794,0.23560588,70784.0,70774.0,0.0014]
[1773499206091,0.042375,70786.0,70774.0,0.0014]
[1773499206278,0.23553899,70785.0,70774.0,0.0014]
[1773499206592,0.043375,70786.0,70774.0,0.0014]
[1773499206797,0.23549438,70785.0,70774.0,0.0014]
[1773499207094,0.042375,70786.0,70774.0,0.0014]
[1773499208195,0.042373,70788.0,70775.0,0.02397196]
[1773499208395,0.23538856,70787.0,70775.0,0.02397196]
[1773499208597,0.042373,70788.0,70775.0,0.02397196]
[1773499208795,0.0014,70790.0,70774.0,0.043781]
[1773499208796,0.001,70786.0,70774.0,0.043781]
[1773499209297,0.042374,70787.0,70774.0,0.043781]
[1773499209689,0.042374,70787.0,70775.0,0.02397196]
[1773499210395,0.042374,70787.0,70774.0,0.043781]
[1773499214598,0.042375,70786.0,70774.0,0.043781]
[1773499224801,0.042375,70785.0,70774.0,0.0014]
[1773499229211,0.23663871,70784.0,70774.0,0.0014]
[1773499229516,0.042375,70785.0,70774.0,0.0014]
[1773499229718,0.23664563,70784.0,70774.0,0.0014]
[1773499229913,0.042375,70785.0,70774.0,0.0014]
[1773499230113,0.23664538,70784.0,70774.0,0.0014]
[1773499230410,0.042375,70785.0,70774.0,0.0014]
[1773499230610,0.23664965,70784.0,70774.0,0.0014]
[1773499230811,0.042375,70785.0,70774.0,0.0014]
[1773499231012,0.23664977,70784.0,70774.0,0.0014]
[1773499231213,0.23677571,70783.0,70774.0,0.0014]
[1773499231517,0.042375,70785.0,70774.0,0.0014]
[1773499231714,0.23677791,70784.0,70774.0,0.0014]
[1773499231918,0.23677791,70783.0,70774.0,0.0014]
[1773499232120,0.042375,70785.0,70774.0,0.0014]
[1773499232417,0.23677811,70784.0,70774.0,0.0014]
[1773499232717,0.23677811,70783.0,70774.0,0.0014]
[1773499232918,0.23677811,70782.0,70774.0,0.0014]
[1773499233116,0.042375,70785.0,70774.0,0.0014]
[1773499233318,0.23689043,70784.0,70774.0,0.0014]
[1773499233518,0.23689043,70783.0,70774.0,0.0014]
[1773499233820,0.23689043,70782.0,70774.0,0.0014]
[1773499234014,0.23689043,70781.0,70774.0,0.0014]
[1773499234216,0.042375,70785.0,70774.0,0.0014]
[1773499234426,0.23691318,70784.0,70774.0,0.0014]
[1773499234613,0.23691318,70783.0,70774.0,0.0014]
[1773499234913,0.23691318,70782.0,70774.0,0.0014]
[1773499235210,0.23691318,70781.0,70774.0,0.0014]
[1773499235411,0.042375,70785.0,70774.0,0.0014]
[1773499235611,0.23692293,70784.0,70774.0,0.0014]
[1773499235822,0.23692293,70783.0,70774.0,0.0014]
[1773499236020,0.23692293,70782.0,70774.0,0.0014]
[1773499236220,0.23692293,70781.0,70774.0,0.0014]
[1773499236423,0.042375,70785.0,70774.0,0.0014]
[1773499236623,0.23694001,70784.0,70774.0,0.0014]
[1773499236824,0.23694001,70783.0,70774.0,0.0014]
[1773499237023,0.23694001,70782.0,70774.0,0.0014]
[1773499237225,0.23694001,70781.0,70774.0,0.0014]
[1773499237424,0.042375,70785.0,70774.0,0.0014]
[1773499237632,0.23694139,70784.0,70774.0,0.0014]
[1773499237817,0.23694139,70783.0,70774.0,0.0014]
[1773499238012,0.23694139,70782.0,70774.0,0.0014]
[1773499238226,0.23694139,70781.0,70774.0,0.0014]
[1773499238527,0.042375,70785.0,70774.0,0.0014]
[1773499238720,0.23694289,70784.0,70774.0,0.0014]
[1773499238921,0.23694289,70783.0,70774.0,0.0014]
[1773499239120,0.23694289,70782.0,70774.0,0.0014]
[1773499239421,0.042375,70785.0,70774.0,0.0014]
[1773499239422,0.23694289,70781.0,70774.0,0.0014]
[1773499239620,0.042375,70785.0,70774.0,0.0014]
[1773499239822,0.23694282,70784.0,70774.0,0.0014]
[1773499240123,0.23694282,70783.0,70774.0,0.0014]
[1773499240324,0.23694282,70782.0,70774.0,0.0014]
[1773499240624,0.042375,70785.0,70774.0,0.0014]
[1773499240625,0.23694282,70781.0,70774.0,0.0014]
[1773499240825,0.042375,70785.0,70774.0,0.0014]
[1773499241025,0.23580109,70784.0,70774.0,0.0014]
[1773499241224,0.23580109,70783.0,70774.0,0.0014]
[1773499241425,0.23580109,70782.0,70774.0,0.0014]
[1773499241621,0.042375,70785.0,70774.0,0.0014]
[1773499241814,0.23579947,70784.0,70774.0,0.0014]
[1773499242020,0.23579947,70783.0,70774.0,0.0014]
[1773499242229,0.23579947,70782.0,70774.0,0.0014]
[1773499242426,0.042375,70785.0,70774.0,0.0014]
[1773499242627,0.23579848,70784.0,70774.0,0.0014]
[1773499242823,0.23579848,70783.0,70774.0,0.0014]
[1773499243024,0.23579848,70782.0,70774.0,0.0014]
[1773499243328,0.23533231,70781.0,70774.0,0.0014]
[1773499243528,0.042375,70785.0,70774.0,0.0014]
[1773499243828,0.23535296,70784.0,70774.0,0.0014]
[1773499244027,0.23535296,70783.0,70774.0,0.0014]
[1773499244228,0.042375,70785.0,70774.0,0.0014]
[1773499244429,0.23536899,70784.0,70774.0,0.0014]
[1773499244627,0.23536899,70783.0,70774.0,0.0014]
[1773499244931,0.042375,70785.0,70774.0,0.0014]
[1773499245120,0.2353646,70784.0,70774.0,0.0014]
[1773499245335,0.2353646,70783.0,70774.0,0.0014]
[1773499245645,0.042375,70785.0,70774.0,0.0014]
[1773499245831,0.27774044,70784.0,70774.0,0.0014]
[1773499246034,0.23536444,70783.0,70774.0,0.0014]
[1773499259261,0.23536444,70783.0,70775.0,0.0014]
[1773499259558,0.23536444,70783.0,70776.0,0.0014]
[1773499260553,0.25503865,70783.0,70777.0,0.0014]
[1773499260759,0.23536444,70782.0,70778.0,0.0014]
[1773499260961,0.01967421,70781.0,70778.0,0.0014]
[1773499261556,0.0014,70793.0,70765.0,0.01122]
[1773499261557,0.01967421,70775.0,70765.0,0.01122]
[1773499261756,0.01967421,70762.0,70746.0,0.005]
[1773499262063,0.07372922,70760.0,70747.0,0.043797]
[1773499262261,0.06206421,70761.0,70748.0,0.0014]
[1773499262459,0.01967421,70760.0,70747.0,0.042397]
[1773499262653,0.01967421,70760.0,70749.0,0.0014]
[1773499263248,0.01967421,70760.0,70750.0,0.0014]
[1773499263556,0.042392,70758.0,70747.0,0.0014]
[1773499263759,0.01967421,70757.0,70747.0,0.0014]
[1773499263951,0.01967421,70757.0,70743.0,0.0424]
[1773499264147,0.01967421,70756.0,70743.0,0.0424]
[1773499264346,0.01967421,70754.0,70744.0,0.0014]
[1773499265346,0.01967421,70754.0,70740.0,0.00010241]
[1773499265550,0.01967421,70754.0,70745.0,0.0014]
[1773499265958,0.01967421,70754.0,70746.0,0.0014]
[1773499266557,0.01614164,70754.0,70746.0,0.0014]
[1773499269262,0.01543471,70754.0,70746.0,0.0014]
[1773499269657,0.042392,70757.0,70746.0,0.0014]
[1773499270363,0.042393,70756.0,70746.0,0.0014]
[1773499274169,0.042393,70755.0,70746.0,0.0014]
[1773499275666,0.05566906,70755.0,70746.0,0.0014]
[1773499275971,0.042394,70754.0,70746.0,0.0014]
[1773499277073,0.042394,70754.0,70741.0,0.042401]
[1773499277275,0.042394,70754.0,70742.0,0.0014]
[1773499277581,0.042394,70754.0,70740.0,0.00010241]
[1773499277582,0.01255023,70753.0,70740.0,0.00010241]
[1773499277871,0.042396,70751.0,70741.0,0.0014]
[1773499278076,0.042396,70751.0,70740.0,0.00010241]
[1773499278377,0.042396,70751.0,70741.0,0.0014]
[1773499278569,0.042396,70750.0,70740.0,0.00010241]
[1773499278772,0.07372922,70760.0,70741.0,0.0014]
[1773499278773,0.05470319,70752.0,70741.0,0.0014]
[1773499279877,0.042395,70752.0,70741.0,0.0014]
[1773499283066,0.01138056,70751.0,70740.0,0.04250441]
[1773499283274,0.01138056,70751.0,70741.0,0.0014]
[1773499284572,0.042395,70752.0,70741.0,0.0014]
[1773499310505,0.042396,70751.0,70741.0,0.0014]
[1773499310703,0.00774503,70756.0,70741.0,0.0014]
[1773499310704,0.042396,70750.0,70741.0,0.0014]
[1773499312101,0.00532496,70752.0,70741.0,0.0014]
[1773499312306,0.00505092,70750.0,70740.0,0.00010241]
[1773499314113,0.042399,70746.0,70740.0,0.00010241]
[1773499314308,0.042399,70746.0,70734.0,0.042405]
[1773499314503,0.042399,70746.0,70735.0,0.0014]
[1773499314704,0.00455297,70745.0,70735.0,0.0014]
[1773499314905,0.04695297,70743.0,70735.0,0.0014]
[1773499315213,0.00012544,70742.0,70735.0,0.0014]
[1773499317510,0.04252644,70742.0,70735.0,0.0014]
[1773499319218,0.04252644,70742.0,70734.0,0.0014]
[1773499320011,0.04252644,70742.0,70733.0,0.0014]
[1773499320316,0.042402,70740.0,70733.0,0.0014]
[1773499320517,0.042402,70740.0,70731.0,0.0007069]
[1773499320717,0.042402,70740.0,70733.0,0.0014]
[1773499323419,0.00637094,70742.0,70732.0,0.0014]
[1773499323720,0.042406,70733.0,70720.0,0.01123]
[1773499323925,0.042404,70737.0,70724.0,0.0014]
[1773499324625,0.042404,70737.0,70724.0,0.043811]
[1773499326620,0.042404,70737.0,70725.0,0.0014]
[1773499328712,0.19824362,70750.0,70725.0,0.0014]
[1773499328713,0.042398,70747.0,70733.0,0.06102899]
[1773499328917,0.042401,70742.0,70730.0,0.042408]
[1773499329913,0.042401,70742.0,70731.0,0.0014]
[1773499330423,0.042402,70741.0,70731.0,0.0014]
[1773499333728,0.0424,70743.0,70731.0,0.0014]
[1773499333931,0.042399,70745.0,70731.0,0.02007489]
[1773499334131,0.042401,70742.0,70731.0,0.02007489]
[1773499334429,0.042401,70742.0,70731.0,0.0014]
[1773499334840,0.0424,70744.0,70731.0,0.0014]
[1773499335023,0.0424,70743.0,70731.0,0.0014]
[1773499338234,0.00308193,70739.0,70720.0,0.01123]
[1773499338428,0.0014,70751.0,70721.0,0.0014]
[1773499338429,0.00291397,70746.0,70721.0,0.0014]
[1773499338734,0.042403,70739.0,70722.0,0.01869685]
[1773499339126,0.042404,70738.0,70723.0,0.042412]
[1773499339430,0.0014,70744.0,70723.0,0.042412]
[1773499339431,0.042404,70737.0,70723.0,0.042412]
[1773499340333,0.042404,70737.0,70723.0,0.043412]
[1773499340527,0.042404,70737.0,70723.0,0.06210584]